bitfinex-derivatives/quotes_BTCF0:USTF0_20210706
["timestamp","ask_amount","ask_price","bid_price","bid_amount"]
[1625570687697,0.001,33803.0,33802.0,0.24057544]
[1625570689650,0.001,33803.0,33802.0,0.52260544]
[1625570690560,0.001,33803.0,33802.0,1.1960249]
[1625570690851,0.001,33803.0,33802.0,0.6960249]
[1625570691902,0.001,33803.0,33802.0,0.4139949]
[1625570692404,0.001,33803.0,33802.0,0.24057544]
[1625570693005,0.01843847,33803.0,33802.0,0.24057544]
[1625570694811,0.31234847,33803.0,33802.0,0.24057544]
[1625570696314,0.31134847,33803.0,33802.0,0.24057544]
[1625570697269,0.34633248,33803.0,33802.0,0.24057544]
[1625570697984,0.51202779,33803.0,33802.0,0.24057544]
[1625570698476,0.34633248,33803.0,33802.0,0.24057544]
[1625570698878,0.51216399,33803.0,33802.0,0.24057544]
[1625570699128,0.34633248,33803.0,33802.0,0.24057544]
[1625570699432,0.31134847,33803.0,33802.0,0.24057544]
[1625570699534,0.01743847,33803.0,33802.0,0.24057544]
[1625570699930,0.0524104,33804.0,33802.0,0.24057544]
[1625570700229,0.01742806,33803.0,33802.0,0.24057544]
[1625570700731,0.0524105,33804.0,33802.0,0.24057544]
[1625570700982,0.01742812,33804.0,33802.0,0.24057544]
[1625570701233,0.05241034,33804.0,33802.0,0.24057544]
[1625570701689,0.21871288,33804.0,33803.0,0.24057544]
[1625570702451,0.05241034,33804.0,33803.0,0.24057544]
[1625570702646,0.01742812,33804.0,33803.0,0.24057544]
[1625570703393,0.05241015,33804.0,33803.0,0.24057544]
[1625570703594,0.21925747,33804.0,33803.0,0.24057544]
[1625570704997,0.05241015,33804.0,33803.0,0.24057544]
[1625570705800,0.05241096,33805.0,33803.0,0.24057544]
[1625570707050,1.05609837,33805.0,33803.0,0.24057544]
[1625570707604,0.05241188,33804.0,33803.0,0.24057544]
[1625570709157,0.30114188,33804.0,33803.0,0.24057544]
[1625570709708,1.30734492,33804.0,33803.0,0.24057544]
[1625570709910,0.30114188,33804.0,33803.0,0.24057544]
[1625570710010,0.26615885,33804.0,33803.0,0.24057544]
[1625570710561,0.01742885,33804.0,33803.0,0.24057544]
[1625570711018,0.18549688,33804.0,33803.0,0.24057544]
[1625570711463,0.18549688,33804.0,33803.0,0.4143453]
[1625570711964,0.01742885,33804.0,33803.0,0.24057544]
[1625570712364,0.01742773,33805.0,33803.0,0.24057544]
[1625570712919,1.02413015,33805.0,33803.0,0.24057544]
[1625570713219,1.00652647,33804.0,33803.0,0.24057544]
[1625570713423,1.05893707,33804.0,33803.0,0.24057544]
[1625570713972,1.72886457,33804.0,33803.0,0.24057544]
[1625570714423,2.90082033,33804.0,33803.0,0.24057544]
[1625570715375,1.72886457,33804.0,33803.0,0.24057544]
[1625570715675,2.90062303,33804.0,33803.0,0.24057544]
[1625570716780,4.24079886,33804.0,33803.0,0.24057544]
[1625570717080,2.90062303,33804.0,33803.0,0.24057544]
[1625570718031,4.24139192,33804.0,33803.0,0.24057544]
[1625570720136,5.75067693,33804.0,33803.0,0.24057544]
[1625570721088,4.24139192,33804.0,33803.0,0.24057544]
[1625570724304,5.75337299,33804.0,33803.0,0.24057544]
[1625570727414,5.75337299,33804.0,33803.0,0.41518394]
[1625570728365,4.24139192,33804.0,33803.0,0.24057544]
[1625570728615,4.24139192,33804.0,33803.0,0.93897829]
[1625570736079,5.75627936,33804.0,33803.0,0.41519968]
[1625570740289,4.24139192,33804.0,33803.0,0.93905042]
[1625570740386,4.24139192,33804.0,33803.0,1.19036042]
[1625570743998,4.7465583,33804.0,33803.0,1.71422956]
[1625570747810,4.7465583,33804.0,33803.0,2.76203218]
[1625570748570,4.7465583,33804.0,33803.0,3.98440962]
[1625570748760,3.40578941,33804.0,33803.0,3.98440962]
[1625570749162,3.3708073,33804.0,33803.0,3.98440962]
[1625570749463,3.3708073,33804.0,33803.0,5.38132785]
[1625570749712,3.3708073,33804.0,33803.0,3.98440962]
[1625570749862,3.3708073,33804.0,33803.0,5.38132594]
[1625570751066,2.19904884,33804.0,33803.0,5.38132594]
[1625570753673,1.19252237,33804.0,33803.0,5.38132594]
[1625570753925,2.20198223,33804.0,33803.0,5.38132594]
[1625570754072,2.20198223,33804.0,33803.0,5.88132594]
[1625570754172,1.19252237,33804.0,33803.0,5.88132594]
[1625570754425,0.52259487,33804.0,33803.0,5.97002594]
[1625570754624,0.01742849,33804.0,33803.0,7.54060396]
[1625570754723,0.16946565,33806.0,33803.0,7.54410152]
[1625570754826,1.17841808,33807.0,33803.0,7.54410152]
[1625570754941,1.00995243,33808.0,33803.0,7.54410152]
[1625570754943,1.00995243,33808.0,33805.0,6.45673475]
[1625570754944,0.16865557,33808.0,33805.0,6.45673475]
[1625570755023,0.16865557,33808.0,33806.0,0.5]
[1625570755123,0.507869,33811.0,33807.0,5.0603656]
[1625570755224,0.507869,33811.0,33808.0,0.5]
[1625570755424,0.002,33811.0,33810.0,6.80094098]
[1625570755527,0.002,33811.0,33810.0,7.30094098]
[1625570755824,0.01941198,33811.0,33810.0,7.30443801]
[1625570756124,0.01941198,33811.0,33810.0,8.02616433]
[1625570756326,0.002,33811.0,33810.0,8.0226673]
[1625570756624,0.002,33811.0,33810.0,8.03189275]
[1625570756973,0.002,33811.0,33810.0,8.03538898]
[1625570757074,0.002,33811.0,33810.0,9.77775144]
[1625570757424,0.002,33811.0,33810.0,8.03538898]
[1625570757624,0.002,33811.0,33810.0,9.77771939]
[1625570757775,0.002,33811.0,33810.0,8.03538898]
[1625570758233,0.002,33811.0,33810.0,8.03189275]
[1625570758325,0.003,33816.0,33810.0,9.77408556]
[1625570758440,0.003,33816.0,33811.0,0.00922278]
[1625570758527,0.003,33816.0,33815.0,4.87234617]
[1625570758627,0.003,33816.0,33815.0,5.37234617]
[1625570759676,0.003,33816.0,33815.0,5.45984617]
[1625570760077,0.003,33816.0,33815.0,5.94099705]
[1625570760179,0.003,33816.0,33815.0,5.85349705]
[1625570761032,0.003,33816.0,33815.0,5.35349705]
[1625570761333,0.003,33816.0,33815.0,3.96139814]
[1625570761592,2.19652602,33816.0,33815.0,1.00318797]
[1625570761881,1.18419428,33816.0,33815.0,1.00318797]
[1625570762093,2.19622052,33816.0,33815.0,0.48115088]
[1625570762196,2.19622052,33816.0,33815.0,4.63405088]
[1625570762296,2.21365026,33816.0,33815.0,4.63405088]
[1625570762837,2.21365026,33816.0,33815.0,5.15589401]
[1625570762838,1.20162402,33816.0,33815.0,5.15589401]
[1625570763352,1.18419428,33816.0,33815.0,5.15589401]
[1625570763585,1.18419428,33816.0,33815.0,4.63405088]
[1625570763586,2.19662149,33816.0,33815.0,4.63405088]
[1625570763685,2.21405124,33816.0,33815.0,4.63405088]
[1625570763786,2.21405124,33816.0,33815.0,5.15576178]
[1625570763787,1.20162403,33816.0,33815.0,5.15576178]
[1625570763888,1.18419428,33816.0,33815.0,5.15576178]
[1625570764091,1.18419428,33816.0,33815.0,4.63405088]
[1625570765241,0.50925022,33816.0,33815.0,5.15572638]
[1625570765443,0.50925022,33816.0,33815.0,5.85128965]
[1625570765695,1.18488722,33816.0,33815.0,4.63405088]
[1625570767248,1.18488722,33816.0,33815.0,0.48115088]
[1625570767349,0.50925022,33816.0,33815.0,0.48115088]
[1625570768253,1.18598323,33816.0,33815.0,0.48115088]
[1625570768452,0.50925022,33816.0,33815.0,0.48115088]
[1625570769252,0.52673415,33816.0,33815.0,0.48115088]
[1625570769353,0.52373415,33816.0,33815.0,0.48115088]
[1625570770255,1.18501004,33816.0,33815.0,0.48115088]
[1625570770355,1.20249402,33816.0,33815.0,0.48115088]
[1625570770456,1.20249402,33816.0,33815.0,5.02715088]
[1625570770657,0.5237342,33816.0,33815.0,5.02715088]
[1625570770857,0.01748398,33816.0,33815.0,5.02715088]
[1625570771159,0.52682282,33816.0,33815.0,5.02715088]
[1625570771359,0.01748398,33816.0,33815.0,5.02715088]
[1625570771457,0.03496789,33816.0,33815.0,5.02715088]
[1625570771559,1.22215317,33816.0,33815.0,5.02715088]
[1625570773215,0.5437858,33816.0,33815.0,5.02715088]
[1625570773511,0.03496789,33816.0,33815.0,5.02715088]
[1625570774565,0.01748398,33816.0,33815.0,5.02715088]
[1625570774665,0.01748398,33816.0,33815.0,6.24256708]
[1625570774813,0.03496869,33816.0,33815.0,5.02715088]
[1625570775965,0.35511869,33816.0,33815.0,5.02715088]
[1625570777018,0.35511869,33816.0,33815.0,0.48115088]
[1625570777217,2.55725778,33816.0,33815.0,0.48115088]
[1625570777969,3.74265416,33816.0,33815.0,0.48115088]
[1625570778167,2.55725778,33816.0,33815.0,0.48115088]
[1625570778619,3.74252891,33816.0,33815.0,0.48115088]
[1625570779569,5.09633913,33816.0,33815.0,0.48115088]
[1625570779819,3.74252891,33816.0,33815.0,0.48115088]
[1625570780821,3.77750301,33816.0,33815.0,0.48115088]
[1625570782025,5.13099458,33816.0,33815.0,0.48115088]
[1625570782226,3.77750301,33816.0,33815.0,0.48115088]
[1625570782477,5.1313483,33816.0,33815.0,0.48115088]
[1625570783428,3.77750301,33816.0,33815.0,0.48115088]
[1625570784181,5.13190646,33816.0,33815.0,0.48115088]
[1625570785733,3.77750301,33816.0,33815.0,0.48115088]
[1625570785883,3.76001903,33816.0,33815.0,0.48115088]
[1625570789891,3.76001903,33816.0,33815.0,0.78926088]
[1625570789991,2.5747479,33816.0,33815.0,0.78926088]
[1625570790241,1.55844115,33816.0,33815.0,0.78926088]
[1625570791895,0.88084686,33816.0,33815.0,0.78926088]
[1625570791996,0.88084686,33816.0,33810.0,0.80186004]
[1625570792095,5.0691,33815.0,33810.0,0.80186004]
[1625570792196,6.08496308,33815.0,33809.0,1.04275293]
[1625570792295,0.72172632,33810.0,33809.0,1.04275293]
[1625570792396,0.72172632,33810.0,33806.0,0.002]
[1625570792596,0.77418852,33810.0,33806.0,0.002]
[1625570792848,0.05246523,33809.0,33806.0,0.002]
[1625570792947,0.31468523,33809.0,33806.0,0.002]
[1625570793451,0.01748868,33808.0,33806.0,0.002]
[1625570796060,0.05247046,33808.0,33806.0,0.002]
[1625570796163,1.40421723,33808.0,33806.0,0.002]
[1625570796364,1.40421723,33808.0,33799.0,0.24057544]
[1625570796464,1.35080386,33807.0,33799.0,0.24057544]
[1625570796564,1.40327855,33807.0,33799.0,0.24057544]
[1625570796861,0.05247502,33806.0,33799.0,0.24057544]
[1625570797364,0.01749167,33806.0,33799.0,0.24057544]
[1625570798264,0.48115088,33800.0,33799.0,0.24057544]
[1625570798363,0.83054088,33800.0,33799.0,0.24057544]
[1625570798714,0.84803233,33800.0,33799.0,0.24057544]
[1625570809497,0.49864233,33800.0,33799.0,0.56521544]
[1625570809592,0.49864233,33800.0,33799.0,1.95779187]
[1625570809794,0.48115088,33800.0,33799.0,1.95779187]
[1625570810092,0.48115088,33800.0,33799.0,3.52435039]
[1625570810593,0.48115088,33800.0,33799.0,3.52784815]
[1625570810743,0.001,33802.0,33799.0,3.52784815]
[1625570811045,0.001,33802.0,33801.0,1.39254474]
[1625570812196,0.001,33802.0,33801.0,2.61103511]
[1625570812396,0.001,33802.0,33801.0,2.85161055]
[1625570814249,0.001,33802.0,33801.0,3.15765055]
[1625570815903,0.001,33802.0,33801.0,2.85161055]
[1625570816207,0.01849052,33802.0,33801.0,1.45906581]
[1625570816611,0.01849052,33802.0,33801.0,0.24057544]
[1625570816813,0.01849052,33802.0,33801.0,1.45934612]
[1625570817111,0.01849052,33802.0,33801.0,0.24057544]
[1625570817213,0.28948052,33802.0,33801.0,0.24057544]
[1625570817412,0.28848052,33802.0,33801.0,0.24057544]
[1625570822622,0.28848052,33802.0,33801.0,1.28556824]
[1625570823324,0.28848052,33802.0,33801.0,2.50471479]
[1625570823574,0.28848052,33802.0,33801.0,1.28556824]
[1625570824024,0.28848052,33802.0,33801.0,2.50472871]
[1625570824324,0.28848052,33802.0,33801.0,1.28556824]
[1625570824828,0.28848052,33802.0,33801.0,2.50473861]
[1625570828234,0.01749052,33802.0,33801.0,2.50473861]
[1625570828484,0.01749153,33803.0,33801.0,2.50473861]
[1625570828837,0.01749153,33803.0,33802.0,2.26486262]
[1625570829337,0.01749153,33803.0,33802.0,3.66197195]
[1625570829788,0.01749153,33803.0,33802.0,5.22970312]
[1625570829889,0.001,33804.0,33802.0,5.22970312]
[1625570830087,0.001,33804.0,33803.0,5.22567586]
[1625570830187,0.001,33804.0,33803.0,5.44732586]
[1625570830387,0.001,33804.0,33803.0,5.45082354]
[1625570830493,0.001,33804.0,33803.0,5.69139898]
[1625570830588,0.001,33804.0,33803.0,5.70062238]
[1625570830687,0.001,33804.0,33803.0,5.78812238]
[1625570830889,0.001,33804.0,33803.0,5.70062238]
[1625570831141,0.001,33804.0,33803.0,5.69139898]
[1625570832242,0.01848949,33804.0,33803.0,4.12019854]
[1625570832341,0.01848949,33804.0,33803.0,3.89854854]
[1625570833747,0.01848949,33804.0,33803.0,2.50503498]
[1625570834451,0.25906493,33804.0,33803.0,2.50503498]
[1625570834755,0.25906493,33804.0,33803.0,3.89957072]
[1625570835356,0.47065493,33804.0,33803.0,3.89957072]
[1625570836907,0.47065493,33804.0,33803.0,0.24057544]
[1625570837058,0.25906493,33804.0,33803.0,0.24057544]
[1625570837158,0.25906493,33804.0,33803.0,3.90194576]
[1625570838059,0.25906493,33804.0,33803.0,5.47110382]
[1625570838259,0.25906493,33804.0,33803.0,3.90194576]
[1625570839065,0.25906493,33804.0,33803.0,2.50713802]
[1625570839264,0.25806493,33804.0,33803.0,2.50713802]
[1625570840017,1.27194392,33804.0,33803.0,1.28668125]
[1625570840219,2.45453691,33804.0,33803.0,1.28668125]
[1625570840869,2.45453691,33804.0,33801.0,1.46132146]
[1625570840870,2.45453691,33804.0,33801.0,0.11176599]
[1625570840973,2.45453691,33804.0,33779.0,2.44649204]
[1625570840974,2.45453691,33804.0,33802.0,1.0464079]
[1625570841069,2.48952678,33804.0,33802.0,1.0464079]
[1625570841169,1.35058568,33803.0,33796.0,1.39530031]
[1625570841369,1.40307355,33803.0,33796.0,1.39530031]
[1625570841472,1.40307355,33803.0,33792.0,1.39538532]
[1625570841473,1.3494902,33798.0,33792.0,1.39538532]
[1625570841575,1.6225002,33798.0,33792.0,1.39538532]
[1625570841676,1.6225002,33798.0,33791.0,1.39539466]
[1625570841874,1.34742175,33794.0,33789.0,0.003]
[1625570842222,6.00952822,33793.0,33789.0,0.003]
[1625570842522,0.48115088,33790.0,33789.0,0.003]
[1625570842623,0.75781088,33790.0,33789.0,0.003]
[1625570843026,0.77530976,33790.0,33789.0,0.003]
[1625570844327,0.75781088,33790.0,33789.0,0.003]
[1625570845279,0.75781088,33790.0,33788.0,1.3939599]
[1625570845881,0.75781088,33790.0,33789.0,1.39388449]
[1625570845980,0.48115088,33790.0,33789.0,1.39388449]
[1625570848483,0.48115088,33790.0,33788.0,1.39370487]
[1625570848783,0.48115088,33790.0,33789.0,1.39370034]
[1625570848984,0.48115088,33790.0,33788.0,1.39370906]
[1625570850187,0.48115088,33790.0,33789.0,1.39349466]
[1625570852092,0.48115088,33790.0,33789.0,2.09038033]
[1625570852294,0.48115088,33790.0,33789.0,0.69688567]
[1625570855052,0.56538864,33790.0,33789.0,0.69688567]
[1625570855554,0.48115088,33790.0,33789.0,0.69688567]
[1625570857505,0.81029088,33790.0,33789.0,0.69688567]
[1625570859220,0.89451865,33790.0,33789.0,0.69688567]
[1625570859918,0.81029088,33790.0,33789.0,0.69688567]
[1625570860368,0.89448983,33790.0,33789.0,0.69688567]
[1625570860870,0.81029088,33790.0,33789.0,0.69688567]
[1625570861070,0.89450931,33790.0,33789.0,0.69688567]
[1625570861523,0.81029088,33790.0,33789.0,0.69688567]
[1625570862022,0.89450125,33790.0,33789.0,0.69688567]
[1625570862221,0.89450125,33790.0,33788.0,0.6960879]
[1625570862423,0.89450125,33790.0,33789.0,0.69609624]
[1625570862672,0.81029088,33790.0,33788.0,0.69604102]
[1625570862923,0.89450136,33790.0,33789.0,0.69603177]
[1625570863175,0.89450136,33790.0,33788.0,0.69603071]
[1625570863373,0.89450136,33790.0,33789.0,0.69602599]
[1625570863625,0.81029088,33790.0,33789.0,0.69602599]
[1625570866328,0.82778917,33790.0,33789.0,0.69602599]
[1625570867382,0.82778917,33790.0,33787.0,0.24057544]
[1625570867383,0.91195273,33790.0,33788.0,0.69566048]
[1625570867630,0.91195273,33790.0,33789.0,0.08695202]
[1625570867730,0.89445444,33790.0,33789.0,0.08695202]
[1625570867981,0.91195284,33790.0,33789.0,0.08695202]
[1625570868333,0.91195284,33790.0,33788.0,0.69560491]
[1625570868534,0.82778928,33790.0,33788.0,0.69560491]
[1625570868784,0.01749807,33789.0,33788.0,0.69560491]
[1625570871093,0.01749807,33789.0,33788.0,2.95599999]
[1625570871444,0.01749807,33789.0,33788.0,2.95949953]
[1625570873754,0.01749807,33789.0,33788.0,4.35072952]
[1625570874467,0.01749807,33789.0,33788.0,2.95949953]
[1625570874552,0.33332807,33789.0,33788.0,2.95949953]
[1625570874799,0.33332807,33789.0,33788.0,2.95599999]
[1625570878659,0.33332807,33789.0,33788.0,1.73886418]
[1625570878858,0.33332807,33789.0,33788.0,2.95650458]
[1625570879409,0.33332807,33789.0,33788.0,1.73886418]
[1625570880612,0.33332807,33789.0,33788.0,4.34817737]
[1625570880712,0.31583,33789.0,33788.0,4.35167689]
[1625570880812,0.48115088,33790.0,33788.0,4.35167689]
[1625570880813,0.48115088,33790.0,33788.0,5.91725924]
[1625570881012,0.71699088,33790.0,33789.0,4.34877189]
[1625570881215,0.71699088,33790.0,33789.0,4.35227141]
[1625570881720,0.73448813,33790.0,33789.0,4.35227141]
[1625570882170,0.73448813,33790.0,33789.0,4.87416881]
[1625570882471,0.49864813,33790.0,33789.0,4.87416881]
[1625570882571,0.48115088,33790.0,33789.0,4.87416881]
[1625570882822,0.49864792,33790.0,33789.0,4.87416881]
[1625570883074,0.48115088,33790.0,33789.0,4.87416881]
[1625570883423,0.49864792,33790.0,33789.0,4.87416881]
[1625570883625,0.48115088,33790.0,33789.0,4.87416881]
[1625570884173,0.4986479,33790.0,33789.0,4.87416881]
[1625570885727,0.4986479,33790.0,33789.0,4.87066929]
[1625570885829,0.4986479,33790.0,33789.0,2.26140615]
[1625570886281,0.4986479,33790.0,33789.0,4.87479861]
[1625570892441,0.4986479,33790.0,33789.0,6.44221819]
[1625570892941,0.25807246,33790.0,33789.0,6.68279363]
[1625570894895,0.24057544,33790.0,33789.0,6.68279363]
[1625570894995,0.24057544,33790.0,33789.0,6.69202971]
[1625570895595,0.24057544,33790.0,33789.0,6.68279363]
[1625570895945,0.25807159,33790.0,33789.0,6.68279363]
[1625570896097,0.25807159,33790.0,33789.0,5.11537405]
[1625570896297,0.25807159,33790.0,33789.0,6.68407241]
[1625570897550,0.25807159,33790.0,33789.0,5.11187457]
[1625570898302,0.25807159,33790.0,33789.0,5.11537395]
[1625570898503,0.25807159,33790.0,33789.0,6.68616653]
[1625570898903,0.34286966,33790.0,33789.0,6.68266715]
[1625570899204,0.34286966,33790.0,33789.0,5.11187457]
[1625570899404,0.34286966,33790.0,33789.0,6.68271975]
[1625570900055,0.32537351,33790.0,33789.0,5.11187457]
[1625570900304,0.34287076,33790.0,33789.0,5.11187457]
[1625570900558,0.34287076,33790.0,33789.0,5.11537406]
[1625570901356,0.25807269,33790.0,33789.0,0.24057544]
[1625570901709,0.34288981,33790.0,33789.0,6.70110711]
[1625570902207,0.34288981,33790.0,33789.0,6.70460666]
[1625570904012,0.34288981,33790.0,33789.0,7.05035666]
[1625570904217,0.34288981,33790.0,33789.0,7.05961131]
[1625570904416,0.25807269,33790.0,33789.0,7.05961131]
[1625570904566,0.24057544,33790.0,33789.0,7.05961131]
[1625570905117,0.001,33792.0,33789.0,8.80562272]
[1625570905317,0.001,33792.0,33791.0,6.46010169]
[1625570905516,0.001,33792.0,33791.0,6.46935348]
[1625570905616,0.001,33792.0,33791.0,6.47285251]
[1625570907023,0.001,33792.0,33791.0,6.71342795]
[1625570907124,0.17126199,33797.0,33791.0,6.71342795]
[1625570907227,0.17126199,33797.0,33792.0,0.00924841]
[1625570907327,0.002,33797.0,33796.0,6.45812266]
[1625570907424,0.002,33797.0,33796.0,6.74855266]
[1625570907624,0.002,33797.0,33796.0,6.75779884]
[1625570907824,0.0194928,33797.0,33796.0,6.7612974]
[1625570908125,0.50811216,33803.0,33796.0,6.7612974]
[1625570908226,0.67742644,33804.0,33796.0,6.7612974]
[1625570908227,0.50834052,33804.0,33796.0,13.33251844]
[1625570908328,0.003,33802.0,33796.0,13.33251844]
[1625570908426,0.003,33802.0,33801.0,6.45343361]
[1625570908929,0.02049076,33802.0,33801.0,6.45343361]
[1625570909028,0.01749076,33802.0,33801.0,6.93458449]
[1625570909530,0.0174903,33803.0,33801.0,7.02318449]
[1625570909629,0.0174903,33803.0,33801.0,6.93458449]
[1625570909731,0.01749044,33804.0,33802.0,4.87984816]
[1625570909930,0.01749044,33804.0,33803.0,4.87987429]
[1625570910031,0.01749039,33805.0,33803.0,5.17211429]
[1625570910282,1.430508,33807.0,33803.0,5.17211429]
[1625570910383,1.430508,33807.0,33804.0,4.87977672]
[1625570910532,0.01749009,33806.0,33804.0,4.87977672]
[1625570910632,0.01749009,33806.0,33805.0,1.39421792]
[1625570910833,0.01749009,33806.0,33805.0,4.96847593]
[1625570910934,0.01749009,33806.0,33805.0,4.87967593]
[1625570911032,0.01749009,33806.0,33805.0,5.12025137]
[1625570911883,0.24057544,33807.0,33805.0,5.12025137]
[1625570912083,0.51225366,33808.0,33805.0,5.12025137]
[1625570912084,0.85124357,33808.0,33806.0,3.48369662]
[1625570912284,0.85124357,33808.0,33805.0,1.63479336]
[1625570912285,0.85124357,33808.0,33807.0,3.48367503]
[1625570912934,0.34298991,33808.0,33807.0,3.48367503]
[1625570913034,0.34298991,33808.0,33807.0,8.32355047]
[1625570913638,0.004,33808.0,33807.0,8.32355047]
[1625570916339,0.004,33808.0,33807.0,7.10426421]
[1625570917341,0.84778656,33809.0,33807.0,7.10426421]
[1625570917442,0.33974848,33809.0,33807.0,7.10426421]
[1625570917693,0.001,33809.0,33808.0,2.26108345]
[1625570918343,0.001,33809.0,33808.0,1.21750647]
[1625570918593,0.001,33809.0,33808.0,2.26108877]
[1625570919095,0.001,33809.0,33808.0,2.50166421]
[1625570919396,0.3396929,33809.0,33808.0,1.45808191]
[1625570919648,0.001,33809.0,33808.0,1.45808191]
[1625570919899,0.001,33809.0,33808.0,2.50137974]
[1625570920199,0.001,33809.0,33808.0,1.45808191]
[1625570920401,0.33959645,33809.0,33808.0,1.45808191]
[1625570920601,0.33959645,33809.0,33808.0,1.11014627]
[1625570920801,0.001,33809.0,33808.0,1.11014627]
[1625570920901,0.001,33809.0,33808.0,1.45792378]
[1625570921052,0.33958957,33809.0,33808.0,0.76236393]
[1625570921552,0.33958957,33809.0,33808.0,1.11015054]
[1625570922003,0.33958957,33809.0,33808.0,0.58836205]
[1625570922004,0.84783175,33809.0,33808.0,0.58836205]
[1625570922504,1.18680143,33809.0,33808.0,0.24057544]
[1625570923459,2.2027309,33809.0,33808.0,0.24057544]
[1625570923910,1.18680143,33809.0,33808.0,0.24057544]
[1625570924762,2.20289926,33809.0,33808.0,0.24057544]
[1625570924960,1.18680143,33809.0,33808.0,0.24057544]
[1625570926264,1.18580143,33809.0,33808.0,0.24057544]
[1625570927066,0.50824218,33809.0,33808.0,0.24057544]
[1625570927419,0.50824218,33809.0,33808.0,0.52244544]
[1625570927519,0.50824218,33809.0,33808.0,0.8701939]
[1625570927718,0.84723515,33809.0,33808.0,0.8701939]
[1625570928669,0.33899297,33809.0,33808.0,0.8701939]
[1625570929122,0.84730267,33809.0,33808.0,0.8701939]
[1625570929424,0.33899297,33809.0,33808.0,1.39175858]
[1625570929826,0.33899297,33809.0,33808.0,0.8701939]
[1625570930324,0.33899297,33809.0,33808.0,1.39177409]
[1625570930775,0.57928662,33810.0,33808.0,1.7394625]
[1625570931075,0.57928662,33810.0,33809.0,0.34771651]
[1625570931225,1.08717227,33810.0,33809.0,0.34771651]
[1625570931727,1.1046623,33810.0,33809.0,0.34771651]
[1625570932028,1.1046623,33810.0,33809.0,0.65507651]
[1625570932125,0.59677665,33810.0,33809.0,0.65507651]
[1625570932380,0.59677665,33810.0,33809.0,1.17661307]
[1625570932631,0.25806547,33810.0,33809.0,1.17661307]
[1625570932879,0.25806547,33810.0,33809.0,0.82889656]
[1625570933483,0.25806547,33810.0,33809.0,1.52421573]
[1625570934032,1.01686459,33814.0,33809.0,1.52421573]
[1625570934234,1.18641787,33816.0,33809.0,1.52421573]
[1625570934333,0.33946076,33815.0,33813.0,1.21674161]
[1625570934533,0.33946076,33815.0,33812.0,1.04292137]
[1625570934534,0.002,33817.0,33814.0,2.9548182]
[1625570934731,0.67943441,33820.0,33814.0,2.9548182]
[1625570934831,0.67912154,33821.0,33816.0,1.73718542]
[1625570934935,0.67912154,33821.0,33816.0,2.04017542]
[1625570935032,0.67912154,33821.0,33817.0,0.69487703]
[1625570935130,0.67912154,33821.0,33820.0,0.72172632]
[1625570935230,0.67912154,33821.0,33820.0,5.87022632]
[1625570935429,0.69660736,33821.0,33820.0,5.87022632]
[1625570935532,0.01748582,33821.0,33820.0,5.87022632]
[1625570939189,0.01748532,33822.0,33820.0,5.87022632]
[1625570941498,0.68153795,33823.0,33820.0,5.87022632]
[1625570941949,0.01748626,33822.0,33820.0,5.87022632]
[1625570942048,0.69584536,33822.0,33820.0,5.87022632]
[1625570942248,0.01748626,33822.0,33820.0,5.87022632]
[1625570942449,0.01748679,33821.0,33820.0,5.87022632]
[1625570942701,0.69581385,33822.0,33820.0,5.87022632]
[1625570943049,0.01748675,33821.0,33820.0,5.87022632]
[1625570944402,0.01748667,33822.0,33820.0,5.87022632]
[1625570944652,0.01748665,33821.0,33820.0,5.87022632]
[1625570944906,0.01748667,33822.0,33820.0,5.87022632]
[1625570945106,0.01748667,33821.0,33820.0,5.87022632]
[1625570945406,0.01748667,33822.0,33820.0,5.87022632]
[1625570946005,0.69564457,33822.0,33820.0,5.87022632]
[1625570946507,0.01748667,33822.0,33820.0,5.87022632]
[1625570946606,0.01748676,33821.0,33820.0,5.87022632]
[1625570946807,0.01748638,33822.0,33820.0,5.87022632]
[1625570947107,0.01748633,33821.0,33820.0,5.87022632]
[1625570947407,0.01748644,33822.0,33820.0,5.87022632]
[1625570947609,0.01748644,33821.0,33820.0,5.87022632]
[1625570947857,0.01748647,33822.0,33820.0,5.87022632]
[1625570949360,0.678061,33823.0,33820.0,5.87022632]
[1625570952420,0.67832311,33822.0,33820.0,5.87022632]
[1625570952672,0.01748628,33821.0,33820.0,5.87022632]
[1625570952921,0.01748633,33822.0,33820.0,5.87022632]
[1625570953222,0.01748628,33821.0,33820.0,5.87022632]
[1625570953723,0.69600062,33822.0,33820.0,5.87022632]
[1625570953974,0.01748637,33821.0,33820.0,5.87022632]
[1625570956834,0.6963255,33821.0,33820.0,5.87022632]
[1625570961393,1.71464171,33821.0,33820.0,5.87022632]
[1625570961494,1.71464171,33821.0,33820.0,6.12486632]
[1625570961644,0.6963255,33821.0,33820.0,6.12486632]
[1625570962346,0.73129737,33821.0,33820.0,6.12486632]
[1625570962697,1.75030126,33821.0,33820.0,6.12486632]
[1625570963149,1.75030126,33821.0,33820.0,0.97636632]
[1625570963249,2.3335067,33821.0,33820.0,0.72172632]
[1625570963447,4.87812565,33821.0,33820.0,0.72172632]
[1625570963547,4.87812565,33821.0,33820.0,0.48115088]
[1625570964148,6.40472068,33821.0,33820.0,0.48115088]
[1625570964397,6.40472068,33821.0,33812.0,0.002]
[1625570964797,1.69618804,33813.0,33812.0,0.002]
[1625570964896,1.92389804,33813.0,33812.0,0.002]
[1625570965197,1.94138736,33813.0,33812.0,0.002]
[1625570965297,2.1819628,33813.0,33812.0,0.24257544]
[1625570965701,3.36927621,33813.0,33812.0,0.24257544]
[1625570965900,2.1819628,33813.0,33812.0,0.24257544]
[1625570965997,2.21694212,33813.0,33812.0,0.24257544]
[1625570966149,3.40439691,33813.0,33812.0,0.24257544]
[1625570966250,3.36941759,33813.0,33812.0,0.24257544]
[1625570969303,3.36941759,33813.0,33812.0,0.24057544]
[1625570969453,2.1819628,33813.0,33812.0,0.24057544]
[1625570969706,3.3698784,33813.0,33812.0,0.24057544]
[1625570970456,2.1819628,33813.0,33812.0,0.24057544]
[1625570970860,3.37032046,33813.0,33812.0,0.24057544]
[1625570971308,2.1819628,33813.0,33812.0,0.24057544]
[1625570971408,1.9542528,33813.0,33812.0,0.24057544]
[1625570971558,1.9542528,33813.0,33812.0,0.93704457]
[1625570974463,1.9542528,33813.0,33812.0,0.24057544]
[1625570974615,3.14333915,33813.0,33812.0,0.24057544]
[1625570975216,3.14333915,33813.0,33812.0,0.50712544]
[1625570975418,1.9542528,33813.0,33812.0,1.20364679]
[1625570975668,0.93657389,33813.0,33812.0,2.24841002]
[1625570976317,0.25806476,33813.0,33812.0,2.24841002]
[1625570977019,0.25806476,33813.0,33812.0,3.46729712]
[1625570977619,0.01748932,33813.0,33812.0,3.46729712]
[1625570978270,0.01748932,33813.0,33812.0,4.86033369]
[1625570978370,0.01748739,33814.0,33812.0,4.86033369]
[1625570978620,0.01748739,33813.0,33812.0,4.86033369]
[1625570978721,0.01748739,33813.0,33812.0,1.90016201]
[1625570978920,0.70036272,33815.0,33812.0,3.46733821]
[1625570979221,0.70040217,33814.0,33812.0,1.72603658]